bitfinex-derivatives/quotes_BTCF0:USTF0_20250211
["timestamp","ask_amount","ask_price","bid_price","bid_amount"]
[1739242011711,0.70330776,97847.0,97830.0,0.2044054]
[1739242011922,0.2044002,97833.0,97830.0,0.2044054]
[1739242012318,0.204386,97840.0,97834.0,0.2043964]
[1739242012625,0.2043881,97839.0,97834.0,0.2043964]
[1739242013727,0.2043724,97846.0,97830.0,0.2044038]
[1739242013922,0.2043813,97842.0,97836.0,0.2043927]
[1739242014122,0.58325137,97848.0,97830.0,0.038]
[1739242014123,0.59563257,97848.0,97838.0,0.2043867]
[1739242014523,0.2043772,97844.0,97838.0,0.2043867]
[1739242014919,0.2043788,97843.0,97838.0,0.2043867]
[1739242015825,0.2043812,97842.0,97838.0,0.2043867]
[1739242016131,0.62575282,97848.0,97838.0,0.001]
[1739242016132,0.2043833,97841.0,97838.0,0.001]
[1739242017530,0.2043852,97840.0,97838.0,0.001]
[1739242017932,0.62575282,97848.0,97838.0,0.001]
[1739242018225,0.2445867,97839.0,97838.0,0.001]
[1739242019224,0.6053867,97839.0,97838.0,0.001]
[1739242019426,0.401,97839.0,97828.0,0.5652079]
[1739242019720,0.204399,97834.0,97828.0,0.5652079]
[1739242020928,0.4417,97839.0,97828.0,0.3608]
[1739242020929,0.2044076,97829.0,97828.0,0.3608]
[1739242022726,0.8944076,97829.0,97828.0,0.3608]
[1739242024734,0.69,97829.0,97819.0,0.2044266]
[1739242024928,0.2044185,97824.0,97819.0,0.2044266]
[1739242025127,0.2044185,97824.0,97823.0,0.3608]
[1739242027524,0.00052001,97829.0,97823.0,0.3608]
[1739242027724,0.2044069,97830.0,97823.0,0.5652181]
[1739242028326,0.07176,97834.0,97829.0,0.2044076]
[1739242028531,0.07176,97834.0,97828.0,0.2044094]
[1739242028728,0.39946025,97836.0,97828.0,0.2044094]
[1739242029231,0.19506645,97836.0,97834.0,0.2043968]
[1739242030335,0.18264051,97836.0,97834.0,0.2043968]
[1739242031529,0.14800714,97835.0,97834.0,0.2043971]
[1739242032236,0.14800714,97835.0,97834.0,0.2053971]
[1739242032830,0.14800714,97835.0,97834.0,0.001]
[1739242033036,0.35240224,97835.0,97834.0,0.001]
[1739242034732,0.25410213,97835.0,97834.0,0.001]
[1739242034928,0.04970703,97835.0,97834.0,0.001]
[1739242036441,0.04970703,97835.0,97834.0,0.0826]
[1739242036937,0.01231136,97850.0,97844.0,0.2043751]
[1739242037138,0.01231136,97850.0,97845.0,0.0388]
[1739242037351,0.01231136,97850.0,97845.0,0.2431729]
[1739242038038,0.2043599,97852.0,97845.0,0.2431729]
[1739242038227,0.07176,97858.0,97848.0,0.2043679]
[1739242038433,0.76176,97858.0,97848.0,0.2043679]
[1739242038634,0.41682222,97857.0,97848.0,0.2043679]
[1739242039238,0.01229927,97852.0,97848.0,0.2043679]
[1739242039543,0.01229927,97852.0,97848.0,0.2053679]
[1739242040455,0.01229927,97852.0,97848.0,0.2063679]
[1739242041737,0.00114383,97859.0,97848.0,0.2063679]
[1739242042242,0.69,97858.0,97848.0,0.2063679]
[1739242042637,0.01221291,97856.0,97848.0,0.2063679]
[1739242046644,0.69,97855.0,97848.0,0.2063679]
[1739242046837,0.69056001,97855.0,97848.0,0.2063679]
[1739242047449,0.2043589,97853.0,97848.0,0.2063679]
[1739242047944,0.204363,97851.0,97848.0,0.2063679]
[1739242048142,0.2043654,97850.0,97848.0,0.002]
[1739242048341,0.2441654,97850.0,97848.0,0.002]
[1739242048950,0.2043953,97835.0,97829.0,0.0416]
[1739242049147,0.2043953,97835.0,97828.0,0.18404484]
[1739242049148,0.69,97835.0,97828.0,0.18404484]
[1739242049357,0.2044013,97832.0,97828.0,0.18404484]
[1739242050258,0.11066,97834.0,97828.0,0.18404484]
[1739242050448,0.11066,97834.0,97829.0,0.204406]
[1739242051144,0.3150581,97834.0,97829.0,0.204406]
[1739242051444,0.2044008,97833.0,97828.0,0.18404484]
[1739242052251,0.2044008,97833.0,97824.0,0.2044168]
[1739242052754,0.2044008,97833.0,97825.0,0.2044153]
[1739242052954,0.2064008,97833.0,97825.0,0.2044153]
[1739242053550,0.002,97833.0,97822.0,0.00015337]
[1739242053754,0.002,97833.0,97832.0,0.2044013]
[1739242055157,0.001,97833.0,97832.0,0.2044013]
[1739242056854,0.001,97833.0,97832.0,0.2449013]
[1739242057258,0.07176,97855.0,97846.0,0.2043703]
[1739242057557,0.07176,97855.0,97847.0,0.2043684]
[1739242057746,0.01236552,97851.0,97847.0,0.2043684]
[1739242058449,0.00253363,97849.0,97847.0,0.2043684]
[1739242058746,0.00253363,97849.0,97847.0,0.2053684]
[1739242059255,0.00253363,97849.0,97847.0,0.2063684]
[1739242066958,0.001,97849.0,97847.0,0.2063684]
[1739242075364,0.001,97849.0,97847.0,0.002]
[1739242075564,0.2053662,97849.0,97847.0,0.002]
[1739242076771,0.041,97848.0,97847.0,0.002]
[1739242076971,0.731,97848.0,97847.0,0.002]
[1739242077476,0.2044001,97833.0,97831.0,0.3608]
[1739242077659,0.0408,97832.0,97831.0,0.3608]
[1739242082178,0.0529322,97832.0,97831.0,0.3608]
[1739242083266,0.38733371,97839.0,97831.0,0.3608]
[1739242083475,0.2043893,97838.0,97835.0,0.2043933]
[1739242083969,0.2043893,97838.0,97837.0,0.2043909]
[1739242085963,0.001,97838.0,97837.0,0.2053909]
[1739242095896,0.18294561,97861.0,97855.0,0.2043517]
[1739242096078,0.19489128,97861.0,97856.0,0.3608]
[1739242097482,0.19489128,97861.0,97856.0,0.56615]
[1739242097674,0.19489128,97861.0,97858.0,0.2043451]
[1739242098787,0.19489128,97861.0,97856.0,0.3628]
[1739242099089,0.18294561,97861.0,97859.0,0.2043439]
[1739242099993,0.07172,97872.0,97858.0,0.001]
[1739242099994,0.07172,97872.0,97864.0,0.2043344]
[1739242100190,0.07172,97872.0,97867.0,0.3608]
[1739242101088,0.08343291,97872.0,97867.0,0.3608]
[1739242101678,0.08343291,97872.0,97867.0,0.3618]
[1739242102089,0.01171291,97872.0,97867.0,0.3618]
[1739242102291,0.00153332,97873.0,97867.0,0.3618]
[1739242102590,0.00153332,97873.0,97872.0,0.2043178]
[1739242102796,0.01323803,97873.0,97872.0,0.2043178]
[1739242102994,0.00153332,97873.0,97872.0,0.2043178]
[1739242103786,0.041,97886.0,97867.0,0.3628]
[1739242103787,0.07672568,97882.0,97868.0,0.2043247]
[1739242103997,0.0417,97879.0,97872.0,0.001]
[1739242104190,0.0403,97878.0,97872.0,0.001]
[1739242104694,0.0403,97878.0,97868.0,0.2043247]
[1739242104880,0.2043029,97880.0,97868.0,0.2043247]
[1739242106088,0.2043055,97878.0,97868.0,0.2043247]
[1739242106287,1.05140001,97887.0,97868.0,0.2043247]
[1739242106482,1.05140001,97887.0,97868.0,0.21618171]
[1739242106483,0.2043015,97880.0,97868.0,0.21618171]
[1739242107290,0.2043015,97880.0,97870.0,0.2043203]
[1739242108383,0.2043015,97880.0,97874.0,0.2043126]
[1739242108778,0.01173517,97886.0,97879.0,0.3608]
[1739242108988,0.18294561,97889.0,97880.0,0.0781]
[1739242109391,0.18294561,97889.0,97885.0,0.2042887]
[1739242109586,0.18294561,97889.0,97880.0,0.0781]
[1739242109780,0.19453782,97889.0,97880.0,0.0781]
[1739242109988,0.2042879,97887.0,97880.0,0.0781]
[1739242110398,0.2042894,97886.0,97880.0,0.0781]
[1739242110695,0.2042894,97886.0,97880.0,0.0402]
[1739242110998,0.18294561,97889.0,97880.0,0.0402]
[1739242111192,0.204299,97881.0,97880.0,0.0402]
[1739242111397,0.204299,97881.0,97880.0,0.0412]
[1739242111702,0.2042869,97887.0,97880.0,0.0412]
[1739242111889,0.18294561,97889.0,97880.0,0.0412]
[1739242112195,0.204299,97881.0,97880.0,0.0412]
[1739242112993,0.204299,97881.0,97880.0,0.0402]
[1739242113193,0.204299,97881.0,97880.0,0.0412]
[1739242113585,0.204299,97881.0,97880.0,0.05282431]
[1739242114696,0.2042854,97888.0,97880.0,0.05282431]
[1739242115297,0.2042891,97886.0,97883.0,0.2042929]
[1739242115695,0.2042891,97886.0,97884.0,0.2042918]
[1739242116501,0.2042779,97892.0,97886.0,0.2042874]
[1739242116702,0.2042829,97889.0,97886.0,0.2042874]
[1739242117361,0.2042829,97889.0,97887.0,0.5650858]
[1739242119901,0.2042689,97896.0,97889.0,0.2042812]
[1739242120103,0.2042689,97896.0,97891.0,0.2042774]
[1739242122816,0.2042689,97896.0,97891.0,0.2052774]
[1739242123200,0.2042689,97896.0,97891.0,0.2062774]
[1739242123599,0.2042689,97896.0,97895.0,0.3608]
[1739242124701,0.1,97900.0,97895.0,0.3608]
[1739242124900,0.1,97900.0,97895.0,0.3618]
[1739242126108,0.1,97900.0,97895.0,0.3628]
[1739242126312,0.1,97900.0,97898.0,0.2042622]
[1739242127601,0.1,97900.0,97898.0,0.2052622]
[1739242129106,0.1,97900.0,97898.0,0.2062622]
[1739242131408,0.1,97900.0,97899.0,0.01205283]
[1739242132715,0.1,97900.0,97899.0,0.01305283]
[1739242132915,0.1,97900.0,97899.0,0.01326138]
[1739242133105,0.1,97900.0,97899.0,0.39368022]
[1739242133308,0.1,97900.0,97899.0,0.39468022]
[1739242134214,0.2042425,97909.0,97900.0,0.2042594]
[1739242134415,0.2042425,97909.0,97908.0,0.3608]
[1739242134713,0.2042425,97909.0,97908.0,0.37306138]
[1739242135508,0.2042425,97909.0,97908.0,0.37293172]
[1739242135708,0.2042425,97909.0,97908.0,0.37293173]
[1739242136111,0.2042425,97909.0,97908.0,0.37393173]
[1739242137421,0.0381,97910.0,97908.0,0.37386496]
[1739242137614,0.0381,97910.0,97908.0,0.3618]
[1739242138208,0.69056001,97928.0,97912.0,0.2042326]
[1739242138209,0.2042202,97919.0,97912.0,0.2042326]
[1739242138415,0.2042202,97919.0,97913.0,0.2042316]
[1739242138808,0.0393,97920.0,97909.0,0.05020585]
[1739242139022,0.0393,97920.0,97918.0,0.5650201]
[1739242140806,0.0393,97920.0,97918.0,0.5660201]
[1739242141316,0.0393,97920.0,97918.0,0.3618]
[1739242141520,0.2435197,97920.0,97918.0,0.3618]
[1739242141714,0.2435197,97920.0,97918.0,0.3628]
[1739242143714,0.2435197,97920.0,97918.0,0.002]
[1739242145522,0.2435197,97920.0,97918.0,0.206221]
[1739242146020,0.0393,97920.0,97918.0,0.206221]
[1739242146411,0.0393,97920.0,97919.0,0.3608]
[1739242146817,0.0393,97920.0,97919.0,0.37274816]
[1739242148621,0.0393,97920.0,97919.0,0.37374816]
[1739242148921,0.0393,97920.0,97919.0,0.37474816]
[1739242149227,0.18294561,97924.0,97923.0,0.2042114]
[1739242149415,0.18294561,97924.0,97923.0,0.21615956]
[1739242150417,0.2041919,97933.0,97931.0,0.2041947]
[1739242151817,0.0406321,97937.0,97931.0,0.2041947]
[1739242152721,0.204185,97936.0,97931.0,0.2041947]
[1739242153117,0.2041872,97935.0,97931.0,0.2051947]
[1739242153424,0.2041872,97935.0,97931.0,0.2061947]
[1739242153721,0.2041925,97933.0,97931.0,0.001]
[1739242153922,0.2041925,97933.0,97931.0,0.002]
[1739242155715,0.0406321,97937.0,97931.0,0.2061941]
[1739242156215,0.0406321,97937.0,97932.0,0.2041907]
[1739242156416,0.2448159,97937.0,97932.0,0.2041907]
[1739242157717,0.2448159,97937.0,97932.0,0.2051907]
[1739242158120,0.2432838,97937.0,97932.0,0.2051907]
[1739242159026,0.2432838,97937.0,97932.0,0.2061907]
[1739242160717,0.204185,97936.0,97932.0,0.2061907]
[1739242161925,0.204185,97936.0,97934.0,0.2041878]
[1739242162118,0.0391,97937.0,97932.0,0.002]
[1739242162324,0.0391,97937.0,97936.0,0.2041844]
[1739242162929,0.2041844,97936.0,97932.0,0.205192]
[1739242163126,0.04965512,97935.0,97934.0,0.001]
[1739242164633,0.04965512,97935.0,97933.0,0.2041903]
[1739242164828,0.04965512,97935.0,97932.0,0.001]
[1739242165233,0.2041885,97934.0,97932.0,0.001]
[1739242165938,0.25384152,97935.0,97934.0,0.001]
[1739242166434,0.04965512,97935.0,97930.0,0.3608]
[1739242166633,0.2041885,97934.0,97932.0,0.001]
[1739242167136,0.2042112,97924.0,97915.0,0.04]
[1739242167935,0.2042112,97924.0,97915.0,0.05136991]
[1739242168937,0.2042112,97924.0,97922.0,0.0011532]
[1739242169836,0.04965512,97923.0,97922.0,0.0011532]
[1739242171343,0.04965512,97923.0,97922.0,0.0001532]
[1739242171542,0.04965512,97923.0,97922.0,0.0011532]
[1739242172331,0.04965512,97923.0,97922.0,0.01298506]
[1739242172533,0.04965512,97923.0,97922.0,0.0011532]
[1739242174149,0.0779,97923.0,97922.0,0.0011532]
[1739242176045,0.08913461,97923.0,97922.0,0.0011532]
[1739242178648,0.16394693,97923.0,97922.0,0.0011532]
[1739242178841,0.2042138,97922.0,97911.0,0.3608]
[1739242179037,0.07648142,97922.0,97911.0,0.3608]
[1739242179242,0.04,97921.0,97911.0,0.3608]
[1739242180254,0.2042323,97913.0,97907.0,0.0001532]
[1739242181339,0.2052323,97913.0,97907.0,0.0001532]
[1739242183251,0.25490101,97913.0,97907.0,0.0001532]
[1739242183749,0.2042428,97908.0,97907.0,0.0001532]
[1739242184543,0.2042574,97901.0,97900.0,0.3608]
[1739242185258,0.204272,97894.0,97893.0,0.0384]
[1739242185554,0.2042761,97892.0,97891.0,0.3608]
[1739242187858,0.2052761,97892.0,97891.0,0.3708]
[1739242188652,0.21681739,97892.0,97891.0,0.3748]
[1739242189050,0.21681739,97892.0,97891.0,0.014]
[1739242189354,0.2042907,97885.0,97884.0,0.18419804]
[1739242189551,0.2759307,97885.0,97884.0,0.18419804]
[1739242189955,0.2759307,97885.0,97884.0,0.0001532]
[1739242190745,0.2759307,97885.0,97884.0,0.0151532]
[1739242190746,0.2769307,97885.0,97884.0,0.0151532]
[1739242191057,0.2779307,97885.0,97884.0,0.0211532]
[1739242191353,0.2769307,97885.0,97884.0,0.0061532]
[1739242191554,0.2759307,97885.0,97884.0,0.0001532]
[1739242192654,0.2759307,97885.0,97884.0,1e-07]
[1739242193048,0.2042991,97881.0,97880.0,1e-07]
[1739242193457,0.2043221,97870.0,97869.0,0.18404484]
[1739242193650,0.2759621,97870.0,97869.0,0.18404484]
[1739242194057,0.2043346,97864.0,97856.0,0.0371]
[1739242194259,0.07164,97870.0,97860.0,0.0001532]
[1739242194260,0.2043408,97861.0,97860.0,0.0001532]
[1739242195646,0.2043408,97861.0,97860.0,0.0051532]
[1739242196749,0.2053408,97861.0,97860.0,0.0171532]
[1739242203747,0.2770208,97861.0,97860.0,0.0171532]
[1739242204357,0.2053408,97861.0,97860.0,0.0171532]
[1739242204555,0.2043275,97868.0,97860.0,0.0171532]
[1739242204758,0.2043275,97868.0,97867.0,0.3608]
[1739242205557,0.01172377,97879.0,97867.0,0.3608]
[1739242205558,0.2043109,97876.0,97867.0,0.5651283]
[1739242205863,0.2043109,97876.0,97868.0,0.0398]
[1739242206763,0.0001532,97879.0,97868.0,0.0398]
[1739242206764,0.2043138,97874.0,97868.0,0.0398]
[1739242206961,0.0001532,97879.0,97868.0,0.0398]
[1739242207165,0.2043241,97869.0,97868.0,0.0398]
[1739242208473,0.2043241,97869.0,97868.0,0.0468]
[1739242208854,0.2043241,97869.0,97868.0,0.0498]
[1739242209051,0.2043241,97869.0,97868.0,0.0428]
[1739242209259,0.2053241,97869.0,97868.0,0.0498]
[1739242211758,0.001,97869.0,97868.0,0.0498]
[1739242216366,0.2042949,97883.0,97871.0,0.2043191]
[1739242216561,0.2042949,97883.0,97882.0,0.3608]
[1739242218770,0.2082949,97883.0,97882.0,0.3608]
[1739242219768,0.2092949,97883.0,97882.0,0.3608]
[1739242220975,0.005,97883.0,97882.0,0.3608]
[1739242223073,0.0001532,97892.0,97882.0,0.3608]
[1739242223074,0.0001532,97892.0,97891.0,0.2042782]
[1739242223378,0.0001532,97892.0,97891.0,0.5650782]
[1739242223784,0.2042621,97899.0,97891.0,0.3608]
[1739242223984,0.2042621,97899.0,97898.0,0.2042636]
[1739242225575,0.2192621,97899.0,97898.0,0.2052636]
[1739242226067,0.2232621,97899.0,97898.0,0.001]
[1739242226877,0.2252621,97899.0,97898.0,0.002]
[1739242234087,0.021,97899.0,97898.0,0.002]
[1739242235882,0.021,97899.0,97898.0,0.01354113]
[1739242236089,0.00015239,97908.0,97898.0,0.01354113]
[1739242236090,0.00015239,97908.0,97907.0,0.2042448]
[1739242236387,0.00015239,97908.0,97907.0,0.5650448]
[1739242237184,0.01515239,97908.0,97907.0,0.5660448]
[1739242237582,0.02215239,97908.0,97907.0,0.5670448]
[1739242238782,0.02215239,97908.0,97907.0,0.3628]
[1739242239589,0.01515239,97908.0,97907.0,0.3628]
[1739242246085,0.01515239,97908.0,97907.0,0.002]
[1739242250494,0.26034247,97920.0,97907.0,0.01352589]
[1739242250798,0.2041973,97930.0,97926.0,0.2042036]
[1739242250993,0.2041973,97930.0,97928.0,0.2042002]
[1739242251400,0.03903227,97936.0,97927.0,0.39812]
[1739242251597,0.03903227,97936.0,97931.0,0.2041948]
[1739242253202,0.2041877,97935.0,97931.0,0.2041948]
[1739242253602,0.2041877,97935.0,97931.0,0.2051948]
[1739242253905,0.2041877,97935.0,97931.0,0.2061948]
[1739242253906,0.18380998,97932.0,97931.0,0.2061948]
[1739242254296,0.001,97932.0,97931.0,0.2061948]
[1739242259012,0.001,97932.0,97931.0,0.002]
[1739242259312,0.2051927,97932.0,97931.0,0.002]
[1739242261004,0.2042177,97920.0,97919.0,0.0001532]
[1739242262901,0.2052177,97920.0,97919.0,0.0001532]
[1739242268415,0.001,97920.0,97919.0,0.0001532]
[1739242269608,0.38700178,97933.0,97920.0,0.2042169]
[1739242269811,0.38700178,97933.0,97932.0,0.3608]
[1739242271700,0.38700178,97933.0,97932.0,0.3618]
[1739242271905,0.38800178,97933.0,97932.0,0.3618]
[1739242272304,0.38800178,97933.0,97932.0,0.3628]
[1739242274715,0.2051918,97933.0,97932.0,0.3628]
[1739242281721,0.2051918,97933.0,97932.0,0.37478897]
[1739242283810,0.001,97933.0,97932.0,0.37490133]
[1739242284616,0.204174,97941.0,97932.0,0.37490133]
[1739242284818,0.204174,97941.0,97940.0,0.3608]
[1739242285922,0.205174,97941.0,97940.0,0.3608]
[1739242286621,0.205174,97941.0,97940.0,0.37299607]
[1739242286824,0.205174,97941.0,97940.0,0.3608]
[1739242287324,0.205174,97941.0,97940.0,0.37299623]
[1739242287515,0.205174,97941.0,97940.0,0.3608]
[1739242287711,0.205174,97941.0,97940.0,0.37299549]
[1739242288116,0.205174,97941.0,97940.0,0.3608]
[1739242288330,0.001,97941.0,97940.0,0.3608]
[1739242293319,0.0782,97941.0,97940.0,0.3608]
[1739242294525,0.001,97941.0,97940.0,0.3608]
[1739242299128,0.001,97941.0,97936.0,0.3608]
[1739242299329,0.001,97941.0,97933.0,0.0372]
[1739242299636,0.001,97941.0,97936.0,0.3608]
[1739242300435,0.204176,97940.0,97936.0,0.3608]
[1739242304432,4e-05,97941.0,97936.0,0.3608]
[1739242304633,0.2041795,97939.0,97936.0,0.3608]
[1739242306841,0.2041817,97938.0,97936.0,0.3608]
[1739242308037,0.25383332,97938.0,97936.0,0.3608]
[1739242311639,0.2042052,97926.0,97925.0,0.3608]
[1739242312845,0.2042052,97926.0,97925.0,0.3628]
[1739242316438,0.21516715,97926.0,97925.0,0.3628]
[1739242318548,0.21516715,97926.0,97925.0,0.002]
[1739242319034,0.2042219,97918.0,97894.0,0.3608]
[1739242319240,0.204226,97916.0,97915.0,0.1836222]
[1739242319435,0.894226,97916.0,97915.0,0.1836222]
[1739242320048,0.204226,97916.0,97915.0,0.1836222]
[1739242320454,0.21546396,97916.0,97915.0,0.1836222]
[1739242321945,0.21546396,97916.0,97915.0,0.1856222]
[1739242322151,0.275786,97916.0,97915.0,0.1856222]
[1739242322452,0.275786,97916.0,97915.0,0.1916222]
[1739242323049,0.275786,97916.0,97915.0,0.1836222]
[1739242323448,0.2042427,97908.0,97907.0,0.0365]
[1739242325344,0.2042427,97908.0,97907.0,0.0375]
[1739242325551,0.204228,97916.0,97907.0,0.0375]
[1739242325748,0.204228,97916.0,97915.0,0.001]
[1739242326450,0.204228,97916.0,97907.0,0.04863398]
[1739242326646,0.204228,97916.0,97907.0,0.05463398]
[1739242327252,0.204228,97916.0,97910.0,0.2042379]
[1739242327457,0.204228,97916.0,97915.0,0.001]
[1739242329049,0.204228,97916.0,97913.0,0.3608]
[1739242329957,0.204228,97916.0,97915.0,0.001]
[1739242330647,0.204228,97916.0,97913.0,0.3628]
[1739242331949,0.204228,97916.0,97913.0,0.37482413]
[1739242332152,0.204228,97916.0,97915.0,0.003]
[1739242332958,0.204228,97916.0,97913.0,0.37334413]
[1739242333154,0.204228,97916.0,97913.0,0.38082413]
[1739242333749,0.204228,97916.0,97913.0,0.37282413]
[1739242333951,0.2042261,97916.0,97915.0,0.007]
[1739242335254,0.2042261,97916.0,97915.0,0.009]
[1739242335556,0.2042261,97916.0,97915.0,0.002]
[1739242335955,0.2042261,97916.0,97915.0,0.001]
[1739242336549,0.2042261,97916.0,97915.0,0.007]
[1739242338053,0.2042261,97916.0,97915.0,0.006]
[1739242338355,0.2042261,97916.0,97915.0,0.007]
[1739242339549,0.204211,97924.0,97918.0,0.2042199]
[1739242339848,0.0001532,97925.0,97918.0,0.2042199]
[1739242339849,0.204215,97922.0,97918.0,0.2042199]
[1739242340651,0.2042261,97916.0,97915.0,0.007]
[1739242340856,0.2042261,97916.0,97915.0,0.006]
[1739242342259,0.2042261,97916.0,97915.0,0.007]
[1739242342457,0.2042261,97916.0,97915.0,0.001]
[1739242343566,0.2042261,97916.0,97915.0,0.007]
[1739242345065,0.2042261,97916.0,97915.0,0.001]
[1739242345366,0.2042261,97916.0,97915.0,0.007]
[1739242348463,0.2042261,97916.0,97915.0,0.006]
[1739242348658,0.2042261,97916.0,97915.0,0.007]
[1739242349170,0.2042261,97916.0,97915.0,0.006]
[1739242358168,0.2042261,97916.0,97915.0,0.005]
[1739242358369,0.2042261,97916.0,97915.0,0.006]
[1739242358761,0.2042261,97916.0,97915.0,0.005]
[1739242358963,0.2042261,97916.0,97915.0,0.006]
[1739242369183,0.8942261,97916.0,97915.0,0.006]
[1739242372597,0.2042448,97907.0,97906.0,0.0001532]
[1739242372790,0.2757648,97907.0,97906.0,0.0001532]
[1739242373988,0.2757648,97907.0,97906.0,0.0101532]
[1739242375391,0.2757648,97907.0,97906.0,0.0131532]
[1739242378591,0.28673961,97907.0,97906.0,0.0131532]
[1739242381393,0.21521961,97907.0,97906.0,0.0131532]
[1739242381698,0.28673961,97907.0,97906.0,0.0131532]
[1739242389191,0.21521961,97907.0,97906.0,0.0131532]
[1739242389598,0.2042448,97907.0,97906.0,0.0131532]
[1739242408905,0.0107039,97910.0,97899.0,0.24539312]
[1739242409103,0.2042594,97900.0,97899.0,0.24539312]
[1739242409303,0.2757394,97900.0,97899.0,0.24539312]
[1739242409611,0.2042761,97892.0,97891.0,0.24539312]
[1739242410914,0.2042761,97892.0,97891.0,0.26039312]
[1739242411812,0.2042761,97892.0,97891.0,0.26739312]
[1739242413411,0.25395726,97892.0,97891.0,0.022]
[1739242414120,0.26475144,97892.0,97891.0,0.022]
[1739242416012,0.21507028,97892.0,97891.0,0.022]
[1739242416724,0.21507028,97892.0,97891.0,0.009]
[1739242417421,0.21507028,97892.0,97891.0,0.002]
[1739242418119,0.21507028,97892.0,97870.0,0.0355]
[1739242418120,0.2043158,97873.0,97870.0,0.0355]
[1739242418327,0.2043158,97873.0,97872.0,0.397]
[1739242419618,0.2043158,97873.0,97872.0,0.411]
[1739242420218,0.2043158,97873.0,97872.0,0.4]
[1739242420527,0.2043158,97873.0,97872.0,0.41]
[1739242426234,0.2043158,97873.0,97872.0,0.0492]
[1739242427629,0.2043158,97873.0,97872.0,0.013]
[1739242432932,0.5651158,97873.0,97872.0,0.013]
[1739242434231,0.5651158,97873.0,97863.0,0.0001532]
[1739242434232,0.2043346,97864.0,97863.0,0.0001532]
[1739242434731,0.2043555,97854.0,97849.0,0.0342]
[1739242437627,0.2053555,97854.0,97853.0,0.0135323]
[1739242437831,0.2063555,97854.0,97853.0,0.0205323]
[1739242438734,0.2043742,97845.0,97844.0,0.00015329]
[1739242440239,0.2043742,97845.0,97844.0,0.00715329]
[1739242440240,0.2053742,97845.0,97844.0,0.00715329]
[1739242440737,0.2063742,97845.0,97844.0,0.01615329]
[1739242443233,0.2063742,97845.0,97844.0,0.01215329]
[1739242444632,0.2063742,97845.0,97844.0,0.01115329]
[1739242447035,0.2044014,97832.0,97829.0,0.0363]
[1739242448233,0.2054014,97832.0,97831.0,0.3678]
[1739242449434,0.2054014,97832.0,97831.0,0.3658]
[1739242450942,0.21602707,97832.0,97831.0,0.3658]
[1739242451243,0.21602707,97832.0,97831.0,0.005]
[1739242465744,0.2044202,97823.0,97822.0,0.18348947]
[1739242466762,0.2044202,97823.0,97822.0,0.00015329]
[1739242467062,0.2064202,97823.0,97822.0,0.00015329]
[1739242484760,0.2778202,97823.0,97822.0,0.00015329]
[1739242488461,0.2064202,97823.0,97822.0,0.00015329]
[1739242488660,0.2778202,97823.0,97822.0,0.00015329]
[1739242495380,0.2777802,97823.0,97822.0,0.00015329]
[1739242500578,0.00015329,97841.0,97822.0,0.53386345]
[1739242500779,0.00015329,97841.0,97834.0,0.3608]
[1739242501070,0.2043877,97839.0,97835.0,0.0678]
[1739242501469,0.2043877,97839.0,97836.0,0.0115685]
[1739242501667,0.2043896,97838.0,97835.0,0.0678]
[1739242503375,0.2043925,97837.0,97835.0,0.0678]
[1739242505168,0.2043925,97837.0,97835.0,0.0688]
[1739242508768,0.01100114,97841.0,97839.0,0.2043856]
[1739242508974,0.01100114,97841.0,97840.0,0.0331]
[1739242509973,0.01400114,97841.0,97840.0,0.0331]
[1739242510685,0.01100114,97841.0,97840.0,0.0331]
[1739242510867,0.01500114,97841.0,97840.0,0.0331]
[1739242512380,0.00415329,97841.0,97840.0,0.0331]
[1739242512570,0.10138725,97870.0,97840.0,0.2552]
[1739242512775,0.2043481,97858.0,97856.0,0.3608]
[1739242514082,0.01621245,97857.0,97856.0,0.3608]
[1739242514270,0.00553323,97857.0,97856.0,0.3608]
[1739242515082,0.01053323,97857.0,97856.0,0.3608]
[1739242515781,0.02053323,97857.0,97856.0,0.3608]
[1739242533194,0.05523323,97857.0,97856.0,0.3608]
[1739242534488,0.2043679,97848.0,97847.0,0.18348947]
[1739242535695,0.2073679,97848.0,97847.0,0.18348947]
[1739242535895,0.2153679,97848.0,97847.0,0.18348947]
[1739242539008,0.22594833,97848.0,97847.0,0.18348947]
[1739242539507,0.22594833,97848.0,97847.0,0.00015329]
[1739242542208,0.29718833,97848.0,97847.0,0.00015329]
[1739242544898,0.34688974,97848.0,97847.0,0.00015329]
[1739242545992,0.14252184,97848.0,97831.0,0.2221]
[1739242546290,0.05030665,97845.0,97831.0,0.2221]
[1739242546891,0.2043926,97837.0,97831.0,0.2221]
[1739242548802,0.2043926,97837.0,97835.0,0.0343]
[1739242552606,0.21506882,97837.0,97835.0,0.0343]
[1739242555596,0.21506882,97837.0,97835.0,0.001]
[1739242565307,0.0497064,97836.0,97835.0,0.001]
[1739242566510,0.2540994,97836.0,97835.0,0.001]
[1739242568298,0.204393,97836.0,97835.0,0.001]
[1739242575606,0.25409703,97836.0,97835.0,0.001]
[1739242577702,0.94409703,97836.0,97835.0,0.001]
[1739242578310,0.25409703,97836.0,97835.0,0.001]
[1739242582326,0.32525703,97836.0,97835.0,0.001]
[1739242584111,0.275553,97836.0,97835.0,0.001]
[1739242587033,0.204393,97836.0,97835.0,0.001]
[1739242595334,0.3608,97837.0,97822.0,0.18389618]
[1739242595623,0.3608,97837.0,97822.0,0.18333618]
[1739242595624,0.3608,97828.0,97822.0,0.18333618]
[1739242595826,0.0346,97827.0,97822.0,0.18333618]
[1739242596029,0.69,97826.0,97822.0,0.18333618]
[1739242596219,0.2044201,97823.0,97822.0,0.18333618]
[1739242597520,0.2054201,97823.0,97822.0,0.18333618]
[1739242598017,0.2064201,97823.0,97822.0,0.18333618]
[1739242598224,0.2064201,97823.0,97818.0,0.24539312]
[1739242598225,0.2044368,97815.0,97814.0,0.00153342]
[1739242600024,0.2054368,97815.0,97814.0,0.00153342]
[1739242600222,0.2074368,97815.0,97814.0,0.00153342]
[1739242603322,0.21791941,97815.0,97814.0,0.00153342]
[1739242629938,0.05045994,97824.0,97814.0,0.36233342]
[1739242629939,0.00015329,97824.0,97814.0,0.36233342]
[1739242630143,0.00015329,97824.0,97823.0,0.5652201]
[1739242631647,0.00315329,97824.0,97823.0,0.5652201]
[1739242632450,0.00215329,97824.0,97823.0,0.5672201]
[1739242632946,0.00215329,97824.0,97823.0,0.7893201]
[1739242633343,0.18309118,97833.0,97830.0,0.204405]